fUSD/lending_fUSD_20240329
["ID","MTS","AMOUNT","RATE_DAILY","PERIOD"]
[320952163,1711721453316,-500.0,0.00049315,120]
[320952164,1711721453326,-500.0,0.00049315,120]
[320952165,1711721453335,-500.0,0.00049315,120]
[320952166,1711721453344,-500.0,0.00049315,120]
[320952167,1711721453353,-500.0,0.00049315,120]
[320952168,1711721453362,-2258.08,0.00049315,120]
[320952169,1711721453372,-500.0,0.00049315,120]
[320952170,1711721453381,-500.0,0.00049315,120]
[320952171,1711721453390,-282.82205472,0.00049315,120]
[320952172,1711721453400,-500.0,0.00049315,120]
[320952173,1711721453409,-502.0305974,0.00049315,120]
[320952174,1711721453418,-500.0,0.00049315,120]
[320952175,1711721453427,-811.38,0.00049315,120]
[320952176,1711721453438,-1213.11,0.00049315,120]
[320952177,1711721453447,-679.62,0.00049315,120]
[320952178,1711721453456,-500.0,0.00049315,120]
[320952179,1711721453465,-500.0,0.00049315,120]
[320952180,1711721453475,-500.0,0.00049315,120]
[320952181,1711721453484,-500.0,0.00049315,120]
[320952182,1711721453493,-500.0,0.00049315,120]
[320952183,1711721453502,-500.0,0.00049315,120]
[320952184,1711721453512,-524.62080036,0.00049315,120]
[320952185,1711721453521,-500.0,0.00049315,120]
[320952186,1711721453530,-524.47463355,0.00049315,120]
[320952187,1711721453539,-500.0,0.00049315,120]
[320952188,1711721453548,-500.0,0.00049315,120]
[320952189,1711721453557,-500.0,0.00049315,120]
[320952190,1711721453566,-500.0,0.00049315,120]
[320952191,1711721453575,-1260.6,0.00049315,120]
[320952192,1711721453585,-500.0,0.00049315,120]
[320952193,1711721453593,-500.0,0.00049315,120]
[320952194,1711721453603,-1520.3,0.00049315,60]
[320952195,1711721453611,-1157.9,0.00049315,120]
[320952196,1711721453620,-502.76684124,0.00049315,120]
[320952197,1711721453629,-500.0,0.00049315,120]
[320952198,1711721453638,-511.11079666,0.00049315,120]
[320952199,1711721453647,-920.83,0.00049315,120]
[320952200,1711721453656,-500.0,0.00049315,120]
[320952201,1711721453665,-2746.44,0.00049315,120]
[320952202,1711721453675,-500.0,0.00049315,120]
[320952203,1711721453688,-523.05695151,0.00049315,120]
[320952204,1711721453699,-520.67128124,0.00049315,120]
[320952205,1711721453709,-500.0,0.00049315,60]
[320952206,1711721453720,-500.0,0.00049315,120]
[320952207,1711721453732,-499.97371114,0.00049315,120]
[320952208,1711721453741,-591.05,0.00049315,120]
[320952209,1711721453751,-788.73,0.00049315,120]
[320952210,1711721453761,-1784.97,0.00049315,120]
[320952211,1711721453771,-929.65,0.00049315,120]
[320952212,1711721453780,-921.81,0.00049315,120]
[320952213,1711721453790,-500.0,0.00049315,120]
[320952214,1711721453799,-1005.38,0.00049315,120]
[320952215,1711721453808,-500.0,0.00049315,120]
[320952216,1711721453820,-500.0,0.00049315,120]
[320952217,1711721453830,-502.2365121,0.00049315,120]
[320952218,1711721453839,-519.18711962,0.00049315,120]
[320952219,1711721453848,-500.0,0.00049315,120]
[320952220,1711721453857,-500.0,0.00049315,120]
[320952221,1711721453866,-754.19,0.00049315,21]
[320952222,1711721453876,-1513.84,0.00049315,120]
[320952223,1711721453885,-556.58,0.00049315,120]
[320952224,1711721453894,-2028.61256821,0.00049315,120]
[320952225,1711721453903,-500.0,0.00049315,120]
[320952226,1711721453912,-500.0,0.00049315,120]
[320952227,1711721453921,-519.78623981,0.00049315,120]
[320952228,1711721453930,-514.90991188,0.00049315,120]
[320952229,1711721453943,-500.0,0.00049315,120]
[320952230,1711721453952,-3254.17,0.00049315,120]
[320952231,1711721453961,-1273.09,0.00049315,120]
[320952232,1711721453971,-500.0,0.00049315,120]
[320952233,1711721453980,-504.45669009,0.00049315,120]
[320952234,1711721453990,-520.92281813,0.00049315,120]
[320952235,1711721453999,-500.0,0.00049315,120]
[320952236,1711721454009,-500.0,0.00049315,120]
[320952237,1711721454018,-503.23494447,0.00049315,120]
[320952238,1711721454027,-741.31,0.00049315,120]
[320952239,1711721454036,-249.28522858,0.00049315,120]
[320952240,1711721454045,-506.35917147,0.00049315,120]
[320952241,1711721454054,-500.0,0.00049315,120]
[320952242,1711721454064,-622.97,0.00049315,120]
[320952243,1711721454073,-500.0,0.00049315,120]
[320952244,1711721454082,-500.0,0.00049315,120]
[320952245,1711721454091,-272.09958707,0.00049315,120]
[320952246,1711721454100,-500.0,0.00049315,120]
[320952247,1711721454109,-519.29211142,0.00049315,120]
[320952248,1711721454118,-511.7899071,0.00049315,120]
[320952249,1711721454127,-747.32,0.00049315,120]
[320952250,1711721454136,-502.82935017,0.00049315,120]
[320952251,1711721454145,-500.0,0.00049315,120]
[320952252,1711721454155,-500.0,0.00049315,120]
[320952253,1711721454164,-579.78,0.00049315,120]
[320952254,1711721454174,-500.0,0.00049315,120]
[320952255,1711721454185,-639.33,0.00049315,120]
[320952256,1711721454195,-1490.8,0.00049315,120]
[320952257,1711721454204,-500.0,0.00049315,120]
[320952258,1711721454213,-500.0,0.00049315,120]
[320952259,1711721454222,-497.3339031,0.00049315,2]
[320952260,1711721454231,-500.0,0.00049315,120]
[320952261,1711721454240,-500.0,0.00049315,120]
[320952262,1711721454250,-500.0,0.00049315,120]
[320952263,1711721454259,-500.0,0.00049315,120]
[320952264,1711721454269,-1000.0,0.00049315,120]
[320952265,1711721454280,-1076.6,0.00049315,120]
[320952266,1711721454290,-1635.18,0.00049315,120]
[320952267,1711721454301,-553.82,0.00049315,120]
[320952268,1711721454311,-1031.96,0.00049315,120]
[320952269,1711721454321,-500.0,0.00049315,120]
[320952270,1711721454331,-627.97,0.00049315,120]
[320952271,1711721454340,-1467.64,0.00049315,120]
[320952272,1711721454350,-500.0,0.00049315,120]
[320952273,1711721454360,-539.0,0.00049315,60]
[320952274,1711721454369,-500.0,0.00049315,120]
[320952275,1711721454379,-500.0,0.00049315,120]
[320952276,1711721454388,-500.0,0.00049315,120]
[320952277,1711721454397,-500.0,0.00049315,120]
[320952278,1711721454407,-500.0,0.00049315,120]
[320952279,1711721454417,-578.16,0.00049315,120]
[320952280,1711721454426,-500.0,0.00049315,120]
[320952281,1711721454438,-529.0,0.00049315,60]
[320952282,1711721454448,-493.75362726,0.00049315,120]
[320952283,1711721454457,-968.69,0.00049315,120]
[320952284,1711721454466,-500.0,0.00049315,120]
[320952285,1711721454475,-500.0,0.00049315,120]
[320952286,1711721454485,-2131.51,0.00049315,120]
[320952287,1711721454494,-500.0,0.00049315,120]
[320952288,1711721454503,-500.0,0.00049315,120]
[320952289,1711721454512,-500.0,0.00049315,2]
[320952290,1711721454522,-500.0,0.00049315,120]
[320952291,1711721454531,-500.0,0.00049315,120]
[320952292,1711721454540,-500.0,0.00049315,120]
[320952293,1711721454549,-500.0,0.00049315,120]
[320952294,1711721454558,-500.0,0.00049315,120]
[320952295,1711721454567,-500.0,0.00049315,120]
[320952296,1711721454576,-159.57,0.00049315,30]
[320952297,1711721454586,-394.73,0.000494,7]
[320952298,1711721454595,-723.1657,0.00049489,3]
[320952299,1711721454604,-353.13,0.000495,7]
[320952300,1711721454613,-634.29,0.00049586,120]
[320952301,1711721454622,-155.81317132,0.00049587,4]
[320952302,1711721454631,-155.51904245,0.00049587,4]
[320952303,1711721454640,-223.56150393,0.00049587,4]
[320952304,1711721454649,-155.77449261,0.00049587,4]
[320952305,1711721454659,-1243.86637841,0.00049587,4]
[320952306,1711721454669,-376.29834861,0.00049587,4]
[320952307,1711721454678,-639.73539017,0.00049587,4]
[320952308,1711721454691,-155.59569249,0.00049587,4]
[320952309,1711721454702,-487.96220756,0.00049587,4]
[320952310,1711721454711,-246.74461914,0.00049587,4]
[320952311,1711721454721,-533.0273136,0.00049587,4]
[320952312,1711721454733,-218.05642744,0.00049587,4]
[320952313,1711721454743,-256.72185983,0.00049587,4]
[320952314,1711721454752,-207.57442402,0.00049587,4]
[320952315,1711721454762,-155.59801524,0.00049587,4]
[320952316,1711721454772,-193.01583188,0.00049588,2]
[320952317,1711721454782,-525.97272435,0.00049589,120]
[320952318,1711721454791,-500.0,0.00049589,120]
[320952319,1711721454800,-500.0,0.00049589,120]
[320952320,1711721454811,-500.0,0.00049589,120]
[320952321,1711721454820,-500.0,0.00049589,120]
[320952322,1711721454829,-500.0,0.00049589,120]
[320952323,1711721454839,-500.0,0.00049589,120]
[320952324,1711721454848,-500.0,0.00049589,120]
[320952325,1711721454858,-500.11174668,0.00049589,120]
[320952326,1711721454867,-500.0,0.00049589,120]
[320952327,1711721454877,-500.0,0.00049589,120]
[320952328,1711721454886,-500.0,0.00049589,120]
[320952329,1711721454896,-251.53567004,0.00049589,2]
[320952330,1711721454905,-500.0,0.00049589,120]
[320952331,1711721454914,-500.0,0.00049589,15]
[320952332,1711721454923,-521.8596918,0.00049589,120]
[320952333,1711721454934,-500.0,0.00049589,120]
[320952334,1711721454943,-500.0,0.00049589,120]
[320952335,1711721454953,-500.0,0.00049589,120]
[320952336,1711721454962,-500.0,0.00049589,120]
[320952337,1711721454971,-500.0,0.00049589,120]
[320952338,1711721454980,-500.0,0.00049589,120]
[320952339,1711721454990,-504.08270996,0.00049589,120]
[320952340,1711721454999,-500.0,0.00049589,120]
[320952341,1711721455009,-500.0,0.00049589,120]
[320952342,1711721455018,-500.0,0.00049589,120]
[320952343,1711721455027,-500.0,0.00049589,120]
[320952344,1711721455037,-503.60633109,0.00049589,120]
[320952345,1711721455047,-500.0,0.00049589,120]
[320952346,1711721455056,-500.0,0.00049589,120]
[320952347,1711721455065,-500.0,0.00049589,120]
[320952348,1711721455074,-500.0,0.00049589,120]
[320952349,1711721455083,-295.69586249,0.00049589,120]
[320952350,1711721455093,-500.0,0.00049589,120]
[320952351,1711721455102,-588.03373297,0.00049589,120]
[320952352,1711721455111,-500.0,0.00049589,120]
[320952353,1711721455120,-500.0,0.00049589,120]
[320952354,1711721455129,-500.0,0.00049589,120]
[320952355,1711721455139,-500.0,0.00049589,120]
[320952356,1711721455148,-500.0,0.00049589,120]
[320952357,1711721455157,-409.7854646,0.00049589,120]
[320952358,1711721455167,-500.0,0.00049589,120]
[320952359,1711721455176,-500.0,0.00049589,120]
[320952360,1711721455187,-500.0,0.00049589,120]
[320952361,1711721455196,-556.12922692,0.00049589,120]
[320952362,1711721455206,-500.0,0.00049589,120]
[320952363,1711721455215,-500.0,0.00049589,120]
[320952364,1711721455226,-512.05094822,0.00049589,120]
[320952365,1711721455235,-530.60179658,0.00049589,120]
[320952366,1711721455244,-272.2793056,0.00049589,120]
[320952367,1711721455255,-500.0,0.00049589,120]
[320952368,1711721455265,-500.0,0.00049589,120]
[320952369,1711721455274,-500.0,0.00049589,120]
[320952370,1711721455284,-500.0,0.00049589,120]
[320952371,1711721455293,-504.18682019,0.00049589,120]
[320952372,1711721455303,-500.0,0.00049589,120]
[320952373,1711721455313,-500.0,0.00049589,120]
[320952374,1711721455322,-500.0,0.00049589,120]
[320952375,1711721455336,-509.90193385,0.00049589,120]
[320952376,1711721455345,-500.0,0.00049589,120]
[320952377,1711721455355,-500.0,0.00049589,120]
[320952378,1711721455365,-500.0,0.00049589,120]
[320952379,1711721455374,-500.0,0.00049589,120]
[320952380,1711721455384,-500.0,0.00049589,120]
[320952381,1711721455394,-500.0,0.00049589,120]
[320952382,1711721455405,-520.90258588,0.00049589,120]
[320952383,1711721455416,-500.0,0.00049589,120]
[320952384,1711721455425,-559.44559051,0.00049589,120]
[320952385,1711721455436,-500.0,0.00049589,120]
[320952386,1711721455446,-500.0,0.00049589,120]
[320952387,1711721455456,-500.0,0.00049589,120]
[320952388,1711721455466,-500.0,0.00049589,120]
[320952389,1711721455476,-500.0,0.00049589,120]
[320952390,1711721455486,-500.0,0.00049589,120]
[320952391,1711721455496,-500.0,0.00049589,120]
[320952392,1711721455506,-511.77851401,0.00049589,120]
[320952393,1711721455515,-500.0,0.00049589,120]
[320952394,1711721455525,-500.0,0.00049589,120]
[320952395,1711721455534,-500.0,0.00049589,120]
[320952396,1711721455544,-526.65190086,0.00049589,120]
[320952397,1711721455554,-500.0,0.00049589,120]
[320952398,1711721455563,-500.0,0.00049589,120]
[320952399,1711721455573,-500.0,0.00049589,120]
[320952400,1711721455582,-500.0,0.00049589,120]
[320952401,1711721455592,-500.0,0.00049589,120]
[320952402,1711721455601,-500.0,0.00049589,120]
[320952403,1711721455611,-500.0,0.00049589,120]
[320952404,1711721455620,-500.0,0.00049589,120]
[320952405,1711721455629,-500.0,0.00049589,120]
[320952406,1711721455639,-500.0,0.00049589,120]
[320952407,1711721455648,-500.0,0.00049589,120]
[320952408,1711721455658,-517.27385723,0.00049589,120]
[320952409,1711721455667,-500.0,0.00049589,120]
[320952410,1711721455677,-500.0,0.00049589,120]
[320952411,1711721455688,-507.44401556,0.00049589,120]
[320952412,1711721455697,-500.0,0.00049589,120]
[320952413,1711721455707,-500.0,0.00049589,120]
[320952414,1711721455717,-527.0,0.00049589,120]
[320952415,1711721455731,-500.0,0.00049589,120]
[320952416,1711721455741,-500.0,0.00049589,120]
[320952417,1711721455753,-516.94386241,0.00049589,120]
[320952418,1711721455762,-500.0,0.00049589,120]
[320952419,1711721455772,-521.90835015,0.00049589,120]
[320952420,1711721455782,-500.0,0.00049589,120]
[320952421,1711721455792,-500.0,0.00049589,120]
[320952422,1711721455802,-500.0,0.00049589,120]
[320952423,1711721455813,-500.0,0.00049589,120]
[320952424,1711721455823,-10000.0,0.00049589,2]
[320952425,1711721455833,-506.9424178,0.00049589,120]
[320952426,1711721455843,-500.0,0.00049589,120]
[320952427,1711721455852,-500.0,0.00049589,120]
[320952428,1711721455862,-500.0,0.00049589,7]
[320952429,1711721455872,-500.0,0.00049589,120]
[320952430,1711721455882,-500.0,0.00049589,120]
[320952431,1711721455892,-520.11,0.00049589,120]
[320952432,1711721455901,-500.0,0.00049589,120]
[320952433,1711721455911,-500.0,0.00049589,120]
[320952434,1711721455920,-500.0,0.00049589,120]
[320952435,1711721455930,-500.0,0.00049589,120]
[320952436,1711721455941,-500.0,0.00049589,120]
[320952437,1711721455951,-500.0,0.00049589,120]
[320952438,1711721455961,-500.0,0.00049589,120]
[320952439,1711721455970,-522.05174831,0.00049589,120]
[320952440,1711721455980,-500.0,0.00049589,120]
[320952441,1711721455989,-500.0,0.00049589,120]
[320952442,1711721455999,-500.0,0.00049589,120]
[320952443,1711721456009,-500.0,0.00049589,120]
[320952444,1711721456019,-500.0,0.00049589,120]
[320952445,1711721456032,-500.0,0.00049589,120]
[320952446,1711721456042,-500.0,0.00049589,120]
[320952447,1711721456052,-500.0,0.00049589,120]
[320952448,1711721456062,-500.0,0.00049589,120]
[320952449,1711721456072,-500.0,0.00049589,120]
[320952450,1711721456082,-517.24129523,0.00049589,120]
[320952451,1711721456092,-500.0,0.00049589,120]
[320952452,1711721456102,-500.0,0.00049589,120]
[320952453,1711721456111,-504.41466839,0.00049589,120]
[320952454,1711721456121,-500.0,0.00049589,120]
[320952455,1711721456131,-507.05114488,0.00049589,120]
[320952456,1711721456141,-500.0,0.00049589,120]
[320952457,1711721456151,-500.0,0.00049589,120]
[320952458,1711721456161,-500.0,0.00049589,120]
[320952459,1711721456172,-500.0,0.00049589,120]
[320952460,1711721456182,-500.0,0.00049589,120]
[320952461,1711721456193,-500.0,0.00049589,120]
[320952462,1711721456203,-505.73668183,0.00049589,2]
[320952463,1711721456213,-500.0,0.00049589,120]
[320952464,1711721456222,-500.0,0.00049589,120]
[320952465,1711721456232,-517.92263424,0.00049589,120]
[320952466,1711721456242,-516.03548402,0.00049589,120]
[320952467,1711721456253,-500.0,0.00049589,120]
[320952468,1711721456263,-500.0,0.00049589,120]
[320952469,1711721456273,-516.79063361,0.00049589,120]
[320952470,1711721456284,-500.0,0.00049589,120]
[320952471,1711721456294,-321.87060879,0.00049589,120]
[320952472,1711721456304,-702.15,0.00049589,120]
[320952473,1711721456314,-500.0,0.00049589,120]
[320952474,1711721456323,-500.0,0.00049589,120]
[320952475,1711721456333,-500.0,0.00049589,120]
[320952476,1711721456342,-500.0,0.00049589,120]
[320952477,1711721456353,-500.0,0.00049589,120]
[320952478,1711721456363,-531.02653895,0.00049589,120]
[320952479,1711721456373,-500.0,0.00049589,2]
[320952480,1711721456383,-500.0,0.00049589,120]
[320952481,1711721456393,-502.6099029,0.00049589,120]
[320952482,1711721456403,-521.40817505,0.00049589,120]
[320952483,1711721456413,-500.0,0.00049589,120]
[320952484,1711721456428,-500.0,0.00049589,120]
[320952485,1711721456440,-272.35658461,0.00049589,120]
[320952486,1711721456450,-500.0,0.00049589,120]
[320952487,1711721456460,-500.0,0.00049589,120]
[320952488,1711721456470,-500.0,0.00049589,120]
[320952489,1711721456480,-500.0,0.00049589,120]
[320952490,1711721456490,-500.0,0.00049589,120]
[320952491,1711721456500,-500.0,0.00049589,120]
[320952492,1711721456510,-500.0,0.00049589,120]
[320952493,1711721456520,-500.0,0.00049589,120]
[320952494,1711721456529,-560.03286471,0.00049589,120]
[320952495,1711721456539,-500.0,0.00049589,120]
[320952496,1711721456549,-500.0,0.00049589,120]
[320952497,1711721456562,-500.0,0.00049589,120]
[320952498,1711721456572,-500.0,0.00049589,120]
[320952499,1711721456581,-500.0,0.00049589,120]
[320952500,1711721456591,-505.81028815,0.00049589,120]
[320952501,1711721456601,-500.0,0.00049589,120]
[320952502,1711721456611,-500.0,0.00049589,120]
[320952503,1711721456622,-500.0,0.00049589,120]
[320952504,1711721456632,-500.0,0.00049589,120]
[320952505,1711721456641,-500.0,0.00049589,120]
[320952506,1711721456651,-500.0,0.00049589,120]
[320952507,1711721456661,-500.0,0.00049589,120]
[320952508,1711721456671,-500.0,0.00049589,120]
[320952509,1711721456681,-500.0,0.00049589,120]
[320952510,1711721456691,-500.0,0.00049589,120]
[320952511,1711721456701,-500.0,0.00049589,120]
[320952512,1711721456711,-500.0,0.00049589,120]
[320952513,1711721456721,-2032.52,0.00049589,120]
[320952514,1711721456733,-500.0,0.00049589,120]
[320952515,1711721456743,-500.0,0.00049589,120]
[320952516,1711721456753,-500.0,0.00049589,120]
[320952517,1711721456763,-500.0,0.00049589,120]
[320952518,1711721456772,-500.0,0.00049589,120]
[320952519,1711721456782,-500.0,0.00049589,120]
[320952520,1711721456792,-500.0,0.00049589,30]
[320952521,1711721456802,-500.0,0.00049589,120]
[320952522,1711721456813,-500.0,0.00049589,120]
[320952523,1711721456823,-500.0,0.00049589,120]
[320952524,1711721456832,-500.0,0.00049589,120]
[320952525,1711721456842,-488.9947462,0.00049589,120]
[320952526,1711721456852,-500.0,0.00049589,120]
[320952527,1711721456862,-500.0,0.00049589,120]
[320952528,1711721456872,-500.0,0.00049589,120]
[320952529,1711721456881,-500.0,0.00049589,120]
[320952530,1711721456891,-518.30450822,0.00049589,120]
[320952531,1711721456901,-500.0,0.00049589,120]
[320952532,1711721456911,-500.0,0.00049589,120]
[320952533,1711721456921,-503.97039179,0.00049589,120]
[320952534,1711721456931,-500.0,0.00049589,120]
[320952535,1711721456941,-523.19,0.00049589,120]
[320952536,1711721456951,-299.5992058,0.00049589,120]
[320952537,1711721457208,-500.0,0.00049589,120]
[320952538,1711721457218,-500.0,0.00049589,120]
[320952539,1711721457227,-500.0,0.00049589,120]
[320952540,1711721457236,-500.0,0.00049589,120]
[320952541,1711721457245,-511.90499714,0.00049589,120]
[320952542,1711721457254,-536.91,0.00049589,120]
[320952543,1711721457264,-510.1177794,0.00049589,120]
[320952544,1711721457273,-457.82415671,0.00049589,120]
[320952545,1711721457283,-500.0,0.00049589,120]
[320952546,1711721457293,-500.0,0.00049589,120]
[320952547,1711721457302,-500.0,0.00049589,120]
[320952548,1711721457312,-516.20025321,0.00049589,120]
[320952549,1711721457321,-500.0,0.00049589,120]
[320952550,1711721457331,-500.0,0.00049589,120]
[320952551,1711721457340,-500.0,0.00049589,120]
[320952552,1711721457349,-500.0,0.00049589,120]
[320952553,1711721457358,-500.0,0.00049589,120]
[320952554,1711721457368,-500.0,0.00049589,120]
[320952555,1711721457377,-500.0,0.00049589,120]
[320952556,1711721457386,-500.0,0.00049589,120]
[320952557,1711721457396,-500.0,0.00049589,120]
[320952558,1711721457406,-500.0,0.00049589,120]
[320952559,1711721457415,-508.65598159,0.00049589,120]
[320952560,1711721457424,-500.0,0.00049589,120]
[320952561,1711721457435,-519.45466733,0.00049589,120]
[320952562,1711721457445,-500.0,0.00049589,120]
[320952563,1711721457454,-500.0,0.00049589,120]
[320952564,1711721457463,-500.0,0.00049589,120]
[320952565,1711721457472,-500.0,0.00049589,120]
[320952566,1711721457482,-500.0,0.00049589,120]
[320952567,1711721457491,-500.0,0.00049589,120]
[320952568,1711721457501,-500.0,0.00049589,120]
[320952569,1711721457511,-500.0,0.00049589,120]
[320952570,1711721457521,-500.0,0.00049589,120]
[320952571,1711721457531,-500.0,0.00049589,120]
[320952572,1711721457541,-500.0,0.00049589,120]
[320952573,1711721457550,-500.0,0.00049589,120]
[320952574,1711721457559,-500.0,0.00049589,120]
[320952575,1711721457569,-500.0,0.00049589,120]
[320952576,1711721457581,-500.0,0.00049589,120]
[320952577,1711721457590,-500.0,0.00049589,120]
[320952578,1711721457600,-500.0,0.00049589,120]
[320952579,1711721457609,-500.0,0.00049589,120]
[320952580,1711721457618,-500.0,0.00049589,120]
[320952581,1711721457628,-500.0,0.00049589,120]
[320952582,1711721457638,-563.81270654,0.00049589,120]
[320952583,1711721457648,-522.09255471,0.00049589,120]
[320952584,1711721457658,-500.0,0.00049589,120]
[320952585,1711721457667,-513.55505244,0.00049589,120]
[320952586,1711721457676,-500.0,0.00049589,120]
[320952587,1711721457687,-234.50909327,0.00049589,120]
[320952588,1711721457696,-500.0,0.00049589,120]
[320952589,1711721457706,-500.0,0.00049589,120]
[320952590,1711721457716,-504.75612552,0.00049589,120]
[320952591,1711721457727,-500.0,0.00049589,120]
[320952592,1711721457739,-504.53132655,0.00049589,120]
[320952593,1711721457748,-524.53737118,0.00049589,120]
[320952594,1711721457757,-509.19478999,0.00049589,120]
[320952595,1711721457769,-500.0,0.00049589,120]
[320952596,1711721457778,-540.69,0.00049589,120]
[320952597,1711721457788,-500.0,0.00049589,120]
[320952598,1711721457797,-500.0,0.00049589,120]
[320952599,1711721457810,-500.0,0.00049589,120]
[320952600,1711721457819,-500.0,0.00049589,120]
[320952601,1711721457829,-500.0,0.00049589,120]
[320952602,1711721457838,-191.80250987,0.00049589,120]
[320952603,1711721457848,-500.0,0.00049589,120]
[320952604,1711721457857,-500.0,0.00049589,120]
[320952605,1711721457867,-500.0,0.00049589,120]
[320952606,1711721457876,-500.0,0.00049589,120]
[320952607,1711721457886,-500.0,0.00049589,120]
[320952608,1711721457895,-500.0,0.00049589,120]
[320952609,1711721457904,-348.66011011,0.00049589,120]
[320952610,1711721457914,-500.0,0.00049589,120]
[320952611,1711721457923,-500.0,0.00049589,120]
[320952612,1711721457934,-500.0,0.00049589,120]
[320952613,1711721457942,-509.93385347,0.00049589,120]
[320952614,1711721457951,-500.0,0.00049589,120]
[320952615,1711721457961,-500.0,0.00049589,120]
[320952616,1711721457970,-500.0,0.00049589,120]
[320952617,1711721457979,-500.0,0.00049589,120]
[320952618,1711721457988,-500.0,0.00049589,120]
[320952619,1711721457998,-500.0,0.00049589,120]
[320952620,1711721458007,-500.0,0.00049589,120]
[320952621,1711721458017,-500.0,0.00049589,120]
[320952622,1711721458026,-500.0,0.00049589,120]
[320952623,1711721458035,-500.0,0.00049589,120]
[320952624,1711721458045,-500.0,0.00049589,120]
[320952625,1711721458054,-500.0,0.00049589,120]
[320952626,1711721458063,-500.0,0.00049589,120]
[320952627,1711721458072,-500.0,0.00049589,120]
[320952628,1711721458081,-500.0,0.00049589,120]
[320952629,1711721458090,-500.0,0.00049589,120]
[320952630,1711721458108,-500.0,0.00049589,120]
[320952631,1711721458120,-500.0,0.00049589,120]
[320952632,1711721458130,-500.0,0.00049589,120]
[320952633,1711721458141,-500.0,0.00049589,120]
[320952634,1711721458151,-500.0,0.00049589,120]
[320952635,1711721458160,-500.0,0.00049589,120]
[320952636,1711721458170,-500.0,0.00049589,120]
[320952637,1711721458180,-500.0,0.00049589,120]
[320952638,1711721458191,-500.0,0.00049589,120]
[320952639,1711721458201,-500.0,0.00049589,120]
[320952640,1711721458211,-512.37894056,0.00049589,120]
[320952641,1711721458221,-500.0,0.00049589,120]
[320952642,1711721458231,-500.0,0.00049589,120]
[320952643,1711721458241,-500.0,0.00049589,120]
[320952644,1711721458250,-500.0,0.00049589,120]
[320952645,1711721458260,-525.70540398,0.00049589,120]
[320952646,1711721458270,-500.0,0.00049589,120]
[320952647,1711721458280,-500.0,0.00049589,120]
[320952648,1711721458289,-500.0,0.00049589,120]
[320952649,1711721458299,-610.6149107,0.00049589,120]
[320952650,1711721458310,-500.0,0.00049589,120]
[320952651,1711721458319,-500.0,0.00049589,120]
[320952652,1711721458329,-500.0,0.00049589,120]
[320952653,1711721458339,-536.98662852,0.00049589,120]
[320952654,1711721458349,-500.0,0.00049589,120]
[320952655,1711721458359,-512.26995925,0.00049589,120]
[320952656,1711721458369,-500.0,0.00049589,120]
[320952657,1711721458379,-500.0,0.00049589,2]
[320952658,1711721458389,-500.0,0.00049589,120]
[320952659,1711721458399,-500.0,0.00049589,120]
[320952660,1711721458408,-500.0,0.00049589,120]
[320952661,1711721458418,-500.0,0.00049589,120]
[320952662,1711721458428,-500.0,0.00049589,120]